[Event "European Online Club-ch-B 2021"]
[Site "Online"]
[Date "2021.03.27"]
[Round "9.8"]
[White "Grochal, Joey"]
[Black "Meylan, Andre"]
[Result "0-1"]
[ECO "E12"]
[WhiteElo "2335"]
[BlackElo "2205"]
[Annotator "NA"]
[PlyCount "56"]
[EventDate "2021.03.27"]
[EventType "team-tourn"]
[EventCountry "NET"]
[SourceTitle "playchess.com"]
[Source "ChessBase"]
[SourceQuality "1"]
[TimeControl "900+5"]

1. d4 {[%emt 0:00:00]} e6 {[%emt 0:00:03]} 2. c4 {[%emt 0:00:03]} Nf6 {[%emt 0:00:01]} 3. Nf3 {[%emt 0:00:02]} b6 {[%emt 0:00:02]} 4. a3 {[%emt 0:00:01]} Bb7 {[%emt 0:00:02]} 5. Nc3 {[%emt 0:00:02]} d5 {[%emt 0:00:15]} 6. cxd5 {[%emt 0:00:02]} Nxd5 {[%emt 0:00:05]} 7. Qc2 {[%emt 0:00:01]} c5 {[%emt 0:00:11]} 8. e4 {[%emt 0:00:28]} Nxc3 {[%emt 0:00:29]} 9. bxc3 {[%emt 0:00:00]} cxd4 {[%emt 0:00:16]} 10. cxd4 {[%emt 0:00:04]} Nd7 {[%emt 0:00:06]} 11. Bd3 {[%emt 0:00:09]} Be7 {[%emt 0:00:12]} 12. Qe2 {[%emt 0:00:33]} O-O {[%emt 0:00:34]} 13. O-O {[%emt 0:00:10]} Nf6 {[%emt 0:00:11]} 14. a4 {[%emt 0:00:51]} Rc8 {[%emt 0:00:18]} 15. Bd2 {[%emt 0:00:51]} Qd7 {[%emt 0:01:53]} 16. a5 {[%emt 0:00:16]} Rfd8 {[%emt 0:00:37]} 17. axb6 {[%emt 0:00:44]} axb6 {[%emt 0:00:00]} 18. Rfb1 {[%emt 0:00:08]} Qc6 {[%emt 0:00:27]} 19. Ne5 {[%emt 0:01:35]} Qc7 {[%emt 0:00:17]} 20. Ra4 {[%emt 0:03:25]} Nd7 {[%emt 0:03:24]} 21. Rc4 {[%emt 0:02:38]} Qb8 {[%emt 0:00:39]} 22. Nxd7 {[%emt 0:01:13]} Rxd7 {[%emt 0:00:00]} 23. Rxb6 {[%emt 0:00:16]} Rxc4 {[%emt 0:00:54]} 24. Bxc4 {[%emt 0:00:03]} Qa7 {[%emt 0:00:22]} 25. Rb1 {[%emt 0:02:15]} Qxd4 {[%emt 0:00:24]} 26. Bd3 {[%emt 0:00:18]} Qxd3 {[%emt 0:00:42]} 27. Qxd3 {[%emt 0:00:03]} Rxd3 {[%emt 0:00:04]} 28. Rxb7 {[%emt 0:00:05]} Rxd2 {[%emt 0:00:07]} 0-1

[Event "European Online Club-ch-B 2021"]
[Site "Online"]
[Date "2021.03.27"]
[Round "9.9"]
[White "Demidov, Mikhail"]
[Black "Edouard, Romain"]
[Result "1/2-1/2"]
[ECO "B22"]
[WhiteElo "2523"]
[BlackElo "2614"]
[Annotator "ChessBase"]
[PlyCount "101"]
[EventDate "2021.03.27"]
[EventType "team-tourn"]
[EventCountry "NET"]
[SourceTitle "playchess.com"]
[Source "ChessBase"]
[SourceQuality "1"]
[TimeControl "900+5"]

1. e4 {[%emt 0:00:00]} c5 {[%emt 0:00:03]} 2. Nf3 {[%emt 0:00:08]} e6 {[%emt 0:00:07]} 3. c3 {[%emt 0:00:02]} d5 {[%emt 0:00:02]} 4. exd5 {[%emt 0:00:04]} exd5 {[%emt 0:00:00]} 5. d4 {[%emt 0:00:01]} Nc6 {[%emt 0:00:03]} 6. Be3 {[%emt 0:00:06]} c4 {[%emt 0:00:02]} 7. b3 {[%emt 0:00:02]} cxb3 {[%emt 0:00:00]} 8. axb3 {[%emt 0:00:02]} Bd6 {[%emt 0:00:01]} 9. Bd3 {[%emt 0:00:06]} Nge7 {[%emt 0:00:00]} 10. O-O {[%emt 0:00:03]} Bf5 {[%emt 0:00:08]} 11. Re1 {[%emt 0:00:05]} O-O {[%emt 0:00:04]} 12. Bg5 {[%emt 0:00:08]} f6 {[%emt 0:00:06]} 13. Bh4 {[%emt 0:00:02]} Qd7 {[%emt 0:00:03]} 14. Bg3 {[%emt 0:00:02]} Bxg3 {[%emt 0:00:02]} 15. hxg3 {[%emt 0:00:02]} Bxd3 {[%emt 0:00:02]} 16. Qxd3 {[%emt 0:00:02]} Nf5 {[%emt 0:00:00]} 17. Nbd2 {[%emt 0:00:11]} Rfe8 {[%emt 0:00:01]} 18. g4 {[%emt 0:00:34]} Nd6 {[%emt 0:00:08]} 19. g5 {[%emt 0:00:01]} fxg5 {[%emt 0:00:22]} 20. Nxg5 {[%emt 0:00:03]} Qf5 {[%emt 0:00:02]} 21. Qxf5 {[%emt 0:00:42]} Nxf5 {[%emt 0:00:00]} 22. Ne6 {[%emt 0:00:03]} Re7 {[%emt 0:00:10]} 23. Nf4 {[%emt 0:00:05]} Rxe1+ {[%emt 0:00:08]} 24. Rxe1 {[%emt 0:00:01]} Rd8 {[%emt 0:00:01]} 25. g4 {[%emt 0:00:42]} Nfe7 {[%emt 0:00:09]} 26. Ne6 {[%emt 0:00:24]} Rd6 {[%emt 0:00:05]} 27. f4 {[%emt 0:00:12]} a5 {[%emt 0:00:15]} 28. Kg2 {[%emt 0:00:30]} b5 {[%emt 0:00:03]} 29. Kg3 {[%emt 0:00:21]} g6 {[%emt 0:00:10]} 30. Nc7 {[%emt 0:00:59]} b4 {[%emt 0:00:07]} 31. cxb4 {[%emt 0:00:08]} axb4 {[%emt 0:00:00]} 32. Nf3 {[%emt 0:00:06]} Rd7 {[%emt 0:00:06]} 33. Ne6 {[%emt 0:00:19]} Ra7 {[%emt 0:00:02]} 34. Nc5 {[%emt 0:00:15]} Ra2 {[%emt 0:00:17]} 35. Re6 {[%emt 0:03:06]} Kf8 {[%emt 0:00:20]} 36. Ne5 {[%emt 0:01:16]} Nxe5 {[%emt 0:00:43]} 37. fxe5 {[%emt 0:00:25]} Rd2 {[%emt 0:00:14]} 38. Rb6 {[%emt 0:00:05]} h5 {[%emt 0:00:09]} 39. Rxb4 {[%emt 0:01:04]} hxg4 {[%emt 0:00:20]} 40. Kxg4 {[%emt 0:00:15]} Nc6 {[%emt 0:00:05]} 41. Rb6 {[%emt 0:00:52]} Nxd4 {[%emt 0:00:15]} 42. Rb8+ {[%emt 0:00:17]} Kg7 {[%emt 0:00:21]} 43. Rd8 {[%emt 0:00:26]} Rg2+ {[%emt 0:00:11]} 44. Kh3 {[%emt 0:00:06]} Re2 {[%emt 0:00:16]} 45. Rxd5 {[%emt 0:00:10]} Nxb3 {[%emt 0:00:02]} 46. Ne6+ {[%emt 0:00:26]} Kf7 {[%emt 0:00:18]} 47. Nf4 {[%emt 0:00:06]} Re4 {[%emt 0:00:08]} 48. Kg3 {[%emt 0:01:05]} Nd4 {[%emt 0:00:13]} 49. Ra5 {[%emt 0:00:27]} Ne2+ {[%emt 0:00:23]} 50. Nxe2 {[%emt 0:00:05]} Rxe2 {[%emt 0:00:00]} 51. Kf4 {[%emt 0:00:05]} 1/2-1/2

[Event "European Online Club-ch-B 2021"]
[Site "Online"]
[Date "2021.03.27"]
[Round "9.10"]
[White "Fontaine, Robert"]
[Black "Baltag, Iulian"]
[Result "0-1"]
[ECO "C01"]
[WhiteElo "2550"]
[BlackElo "2393"]
[Annotator "ChessBase"]
[PlyCount "80"]
[EventDate "2021.03.27"]
[EventType "team-tourn"]
[EventCountry "NET"]
[SourceTitle "playchess.com"]
[Source "ChessBase"]
[SourceQuality "1"]
[TimeControl "900+5"]

1. e4 {[%emt 0:00:00]} e6 {[%emt 0:00:11]} 2. d4 {[%emt 0:00:03]} d5 {[%emt 0:00:01]} 3. Bd3 {[%emt 0:00:01]} dxe4 {[%emt 0:00:05]} 4. Bxe4 {[%emt 0:00:01]} Nf6 {[%emt 0:00:02]} 5. Bf3 {[%emt 0:00:01]} c5 {[%emt 0:00:14]} 6. Ne2 {[%emt 0:00:02]} Nc6 {[%emt 0:00:02]} 7. Be3 {[%emt 0:00:02]} cxd4 {[%emt 0:00:02]} 8. Nxd4 {[%emt 0:00:06]} Ne5 {[%emt 0:00:02]} 9. Be2 {[%emt 0:00:04]} Bb4+ {[%emt 0:00:16]} 10. c3 {[%emt 0:00:04]} Be7 {[%emt 0:00:02]} 11. O-O {[%emt 0:00:04]} O-O {[%emt 0:00:02]} 12. c4 {[%emt 0:00:03]} Bd7 {[%emt 0:00:06]} 13. Nc3 {[%emt 0:00:03]} Rc8 {[%emt 0:00:15]} 14. b3 {[%emt 0:01:25]} Qa5 {[%emt 0:00:23]} 15. Qc2 {[%emt 0:00:06]} a6 {[%emt 0:00:15]} 16. a3 {[%emt 0:00:29]} Qc7 {[%emt 0:00:11]} 17. h3 {[%emt 0:01:52]} b5 {[%emt 0:00:21]} 18. Bf4 {[%emt 0:00:27]} Nf3+ {[%emt 0:00:21]} 19. Nxf3 {[%emt 0:00:11]} Qxf4 {[%emt 0:00:02]} 20. Rfd1 {[%emt 0:00:02]} Bc6 {[%emt 0:00:39]} 21. cxb5 {[%emt 0:00:32]} axb5 {[%emt 0:00:26]} 22. Qb2 {[%emt 0:00:04]} b4 {[%emt 0:00:28]} 23. axb4 {[%emt 0:00:09]} Qxb4 {[%emt 0:00:05]} 24. Rac1 {[%emt 0:00:42]} Bb7 {[%emt 0:00:19]} 25. Nb5 {[%emt 0:00:16]} Bd5 {[%emt 0:00:19]} 26. Nbd4 {[%emt 0:00:37]} Ne4 {[%emt 0:00:18]} 27. Ne5 {[%emt 0:00:59]} Nc3 {[%emt 0:00:18]} 28. Rd3 {[%emt 0:01:58]} Nxe2+ {[%emt 0:00:28]} 29. Nxe2 {[%emt 0:00:02]} Rxc1+ {[%emt 0:00:22]} 30. Qxc1 {[%emt 0:00:09]} Qe4 {[%emt 0:00:18]} 31. Rxd5 {[%emt 0:00:52]} exd5 {[%emt 0:00:16]} 32. Qe3 {[%emt 0:00:02]} Qxe3 {[%emt 0:00:09]} 33. fxe3 {[%emt 0:00:02]} Bc5 {[%emt 0:00:18]} 34. Nd4 {[%emt 0:00:06]} Bxd4 {[%emt 0:00:53]} 35. exd4 {[%emt 0:00:03]} Rb8 {[%emt 0:00:12]} 36. Nc6 {[%emt 0:00:02]} Rxb3 {[%emt 0:00:12]} 37. Kf2 {[%emt 0:00:06]} Kf8 {[%emt 0:00:13]} 38. h4 {[%emt 0:00:02]} f6 {[%emt 0:00:12]} 39. Na5 {[%emt 0:00:04]} Rb5 {[%emt 0:00:14]} 40. Nc6 {[%emt 0:00:02]} Ke8 {[%emt 0:00:09]} 0-1

[Event "European Online Club-ch-B 2021"]
[Site "Online"]
[Date "2021.03.27"]
[Round "9.11"]
[White "Andriasyan, Siranush"]
[Black "Riff, Jean-Noel"]
[Result "1/2-1/2"]
[ECO "B80"]
[WhiteElo "2298"]
[BlackElo "2499"]
[Annotator "ChessBase"]
[PlyCount "151"]
[EventDate "2021.03.27"]
[EventType "team-tourn"]
[EventCountry "NET"]
[SourceTitle "playchess.com"]
[Source "ChessBase"]
[SourceQuality "1"]
[TimeControl "900+5"]

1. e4 {[%emt 0:00:00]} c5 {[%emt 0:00:03]} 2. Nf3 {[%emt 0:00:03]} d6 {[%emt 0:00:02]} 3. d4 {[%emt 0:00:02]} cxd4 {[%emt 0:00:02]} 4. Nxd4 {[%emt 0:00:02]} Nf6 {[%emt 0:00:02]} 5. Nc3 {[%emt 0:00:01]} e6 {[%emt 0:00:01]} 6. Bg5 {[%emt 0:00:15]} h6 {[%emt 0:00:05]} 7. Be3 {[%emt 0:00:08]} Nc6 {[%emt 0:00:05]} 8. f3 {[%emt 0:00:06]} Be7 {[%emt 0:00:02]} 9. Qd2 {[%emt 0:00:03]} O-O {[%emt 0:00:02]} 10. O-O-O {[%emt 0:00:03]} d5 {[%emt 0:00:01]} 11. Qe1 {[%emt 0:04:41]} e5 {[%emt 0:00:03]} 12. Nxc6 {[%emt 0:00:03]} bxc6 {[%emt 0:00:02]} 13. Qg3 {[%emt 0:00:48]} Qd6 {[%emt 0:00:50]} 14. Na4 {[%emt 0:02:02]} d4 {[%emt 0:00:13]} 15. Bd2 {[%emt 0:00:25]} Be6 {[%emt 0:00:23]} 16. b3 {[%emt 0:00:21]} Kh8 {[%emt 0:01:10]} 17. Bd3 {[%emt 0:01:25]} Nd7 {[%emt 0:00:03]} 18. f4 {[%emt 0:00:20]} Rab8 {[%emt 0:01:30]} 19. Nb2 {[%emt 0:00:40]} Qa3 {[%emt 0:00:05]} 20. Kb1 {[%emt 0:00:08]} exf4 {[%emt 0:00:37]} 21. Bxf4 {[%emt 0:00:19]} Bb4 {[%emt 0:00:25]} 22. Bc1 {[%emt 0:00:24]} Qa5 {[%emt 0:00:09]} 23. Bc4 {[%emt 0:00:39]} Bc3 {[%emt 0:00:10]} 24. Bxe6 {[%emt 0:00:17]} fxe6 {[%emt 0:00:02]} 25. Rhf1 {[%emt 0:00:21]} Ne5 {[%emt 0:01:33]} 26. Qh4 {[%emt 0:00:53]} Kh7 {[%emt 0:00:42]} 27. Qe7 {[%emt 0:00:44]} Rfe8 {[%emt 0:00:03]} 28. Qh4 {[%emt 0:00:13]} Rb7 {[%emt 0:00:34]} 29. g4 {[%emt 0:00:09]} Ng6 {[%emt 0:00:21]} 30. Qh3 {[%emt 0:00:26]} Bxb2 {[%emt 0:00:36]} 31. Bxb2 {[%emt 0:00:00]} e5 {[%emt 0:00:08]} 32. g5 {[%emt 0:00:06]} Nf4 {[%emt 0:00:23]} 33. Qg4 {[%emt 0:00:18]} Qd8 {[%emt 0:00:16]} 34. gxh6 {[%emt 0:00:09]} gxh6 {[%emt 0:00:04]} 35. Qf5+ {[%emt 0:00:04]} Ng6 {[%emt 0:00:09]} 36. Rg1 {[%emt 0:00:16]} Rg7 {[%emt 0:00:04]} 37. h4 {[%emt 0:00:11]} Rf8 {[%emt 0:00:05]} 38. Qe6 {[%emt 0:00:24]} Qf6 {[%emt 0:00:03]} 39. Qh3 {[%emt 0:00:31]} Qf3 {[%emt 0:00:13]} 40. Qe6 {[%emt 0:00:10]} Rf6 {[%emt 0:00:08]} 41. Qc4 {[%emt 0:00:06]} Rgf7 {[%emt 0:00:11]} 42. h5 {[%emt 0:00:05]} Qxh5 {[%emt 0:00:03]} 43. Rh1 {[%emt 0:00:02]} Qf3 {[%emt 0:00:06]} 44. Bc1 {[%emt 0:00:05]} Nf4 {[%emt 0:00:01]} 45. Rdg1 {[%emt 0:00:06]} Qxe4 {[%emt 0:00:04]} 46. Qc5 {[%emt 0:00:06]} d3 {[%emt 0:00:06]} 47. Kb2 {[%emt 0:00:08]} dxc2 {[%emt 0:00:04]} 48. Bxf4 {[%emt 0:00:01]} Rxf4 {[%emt 0:00:09]} 49. Qd6 {[%emt 0:00:05]} Qd4+ {[%emt 0:00:01]} 50. Qxd4 {[%emt 0:00:02]} Rxd4 {[%emt 0:00:11]} 51. Kxc2 {[%emt 0:00:09]} Rf2+ {[%emt 0:00:02]} 52. Kc3 {[%emt 0:00:02]} Rxa2 {[%emt 0:00:04]} 53. Re1 {[%emt 0:00:02]} Ra5 {[%emt 0:00:02]} 54. Ref1 {[%emt 0:00:05]} Rf4 {[%emt 0:00:04]} 55. Rd1 {[%emt 0:00:04]} Rd5 {[%emt 0:00:02]} 56. Ra1 {[%emt 0:00:05]} a5 {[%emt 0:00:01]} 57. Kb2 {[%emt 0:00:05]} Rf3 {[%emt 0:00:03]} 58. Rac1 {[%emt 0:00:04]} c5 {[%emt 0:00:19]} 59. Ra1 {[%emt 0:00:03]} Rd2+ {[%emt 0:00:02]} 60. Kc1 {[%emt 0:00:08]} Rg2 {[%emt 0:00:03]} 61. Rxa5 {[%emt 0:00:03]} Rc3+ {[%emt 0:00:01]} 62. Kd1 {[%emt 0:00:07]} Rxb3 {[%emt 0:00:02]} 63. Ra7+ {[%emt 0:00:04]} Kg6 {[%emt 0:00:01]} 64. Kc1 {[%emt 0:00:05]} h5 {[%emt 0:00:04]} 65. Rc7 {[%emt 0:00:13]} Rc3+ {[%emt 0:00:06]} 66. Kb1 {[%emt 0:00:03]} e4 {[%emt 0:00:03]} 67. Rc6+ {[%emt 0:00:07]} Kg5 {[%emt 0:00:03]} 68. Rc8 {[%emt 0:00:02]} Kf4 {[%emt 0:00:01]} 69. Rxh5 {[%emt 0:00:05]} Rf3 {[%emt 0:00:09]} 70. Rcxc5 {[%emt 0:00:04]} e3 {[%emt 0:00:05]} 71. Rc4+ {[%emt 0:00:04]} Kg3 {[%emt 0:00:01]} 72. Rg5+ {[%emt 0:00:09]} Kf2 {[%emt 0:00:02]} 73. Rc2+ {[%emt 0:00:03]} e2 {[%emt 0:00:05]} 74. Rxe2+ {[%emt 0:00:02]} Kxe2 {[%emt 0:00:01]} 75. Rxg2+ {[%emt 0:00:03]} Rf2 {[%emt 0:00:01]} 76. Rxf2+ {[%emt 0:00:05]} 1/2-1/2

[Event "European Online Club-ch-B 2021"]
[Site "Online"]
[Date "2021.03.27"]
[Round "9.12"]
[White "Miralles, Gilles"]
[Black "Naudion, Gregoire"]
[Result "1-0"]
[ECO "E67"]
[WhiteElo "2418"]
[BlackElo "2146"]
[Annotator "NA"]
[PlyCount "55"]
[EventDate "2021.03.27"]
[EventType "team-tourn"]
[EventCountry "NET"]
[SourceTitle "playchess.com"]
[Source "ChessBase"]
[SourceQuality "1"]
[TimeControl "900+5"]

1. d4 {[%emt 0:00:00]} g6 {[%emt 0:00:05]} 2. Nf3 {[%emt 0:00:15]} Bg7 {[%emt 0:00:03]} 3. g3 {[%emt 0:00:03]} Nf6 {[%emt 0:00:02]} 4. Bg2 {[%emt 0:00:01]} O-O {[%emt 0:00:04]} 5. c4 {[%emt 0:00:05]} d6 {[%emt 0:00:03]} 6. Nc3 {[%emt 0:00:12]} Nbd7 {[%emt 0:00:03]} 7. O-O {[%emt 0:00:02]} e5 {[%emt 0:00:03]} 8. Qc2 {[%emt 0:00:31]} c6 {[%emt 0:00:31]} 9. Rd1 {[%emt 0:00:03]} Qe7 {[%emt 0:02:22]} 10. b3 {[%emt 0:00:24]} Re8 {[%emt 0:00:49]} 11. e3 {[%emt 0:00:30]} exd4 {[%emt 0:04:07]} 12. Nxd4 {[%emt 0:00:48]} Ne5 {[%emt 0:00:10]} 13. Bb2 {[%emt 0:00:58]} Bg4 {[%emt 0:01:57]} 14. f3 {[%emt 0:00:46]} c5 {[%emt 0:00:10]} 15. fxg4 {[%emt 0:00:53]} cxd4 {[%emt 0:00:56]} 16. Rxd4 {[%emt 0:02:07]} Nexg4 {[%emt 0:00:31]} 17. Re1 {[%emt 0:00:11]} Qe5 {[%emt 0:01:20]} 18. Nd1 {[%emt 0:00:59]} Qc5 {[%emt 0:02:30]} 19. h3 {[%emt 0:00:35]} Ne5 {[%emt 0:00:19]} 20. Kh2 {[%emt 0:01:28]} Nc6 {[%emt 0:00:11]} 21. Rf1 {[%emt 0:02:01]} Re6 {[%emt 0:00:18]} 22. Rdf4 {[%emt 0:00:20]} Ne5 {[%emt 0:00:05]} 23. Bd4 {[%emt 0:00:12]} Qc7 {[%emt 0:00:06]} 24. Nc3 {[%emt 0:00:06]} h5 {[%emt 0:00:04]} 25. Qd2 {[%emt 0:01:47]} Qd8 {[%emt 0:00:09]} 26. Bxb7 {[%emt 0:00:11]} Rb8 {[%emt 0:00:06]} 27. Bg2 {[%emt 0:00:04]} Bh6 {[%emt 0:00:06]} 28. Bxa7 {[%emt 0:00:26]} 1-0

[Event "European Online Club-ch-B 2021"]
[Site "Online"]
[Date "2021.03.27"]
[Round "9.13"]
[White "Sorensen, Hampus"]
[Black "Grandelius, Nils"]
[Result "0-1"]
[ECO "D90"]
[WhiteElo "2395"]
[BlackElo "2663"]
[Annotator "ChessBase"]
[PlyCount "70"]
[EventDate "2021.03.27"]
[EventType "team-tourn"]
[EventCountry "NET"]
[SourceTitle "playchess.com"]
[Source "ChessBase"]
[SourceQuality "1"]
[TimeControl "900+5"]

1. d4 {[%emt 0:00:00]} Nf6 {[%emt 0:00:04]} 2. c4 {[%emt 0:00:03]} g6 {[%emt 0:00:02]} 3. Nc3 {[%emt 0:00:03]} d5 {[%emt 0:00:01]} 4. Nf3 {[%emt 0:00:02]} Bg7 {[%emt 0:00:01]} 5. h4 {[%emt 0:00:02]} Bg4 {[%emt 0:00:00]} 6. Ne5 {[%emt 0:03:13]} Be6 {[%emt 0:00:04]} 7. Bg5 {[%emt 0:00:32]} O-O {[%emt 0:02:31]} 8. e3 {[%emt 0:00:10]} c5 {[%emt 0:00:18]} 9. dxc5 {[%emt 0:00:54]} Ne4 {[%emt 0:02:07]} 10. Nxe4 {[%emt 0:01:00]} dxe4 {[%emt 0:00:06]} 11. Qxd8 {[%emt 0:00:16]} Rxd8 {[%emt 0:00:00]} 12. Bxe7 {[%emt 0:00:02]} Re8 {[%emt 0:02:44]} 13. Bd6 {[%emt 0:00:15]} f6 {[%emt 0:02:06]} 14. c6 {[%emt 0:00:28]} bxc6 {[%emt 0:00:15]} 15. Bxb8 {[%emt 0:00:05]} Rexb8 {[%emt 0:00:03]} 16. Nxc6 {[%emt 0:00:03]} Rxb2 {[%emt 0:00:02]} 17. Nd4 {[%emt 0:03:29]} Bf7 {[%emt 0:00:03]} 18. Be2 {[%emt 0:00:39]} f5 {[%emt 0:00:19]} 19. Bd1 {[%emt 0:01:31]} a5 {[%emt 0:01:50]} 20. c5 {[%emt 0:01:15]} a4 {[%emt 0:00:27]} 21. a3 {[%emt 0:00:24]} Bc4 {[%emt 0:02:17]} 22. Rc1 {[%emt 0:00:09]} Bd3 {[%emt 0:00:03]} 23. c6 {[%emt 0:00:16]} Rc8 {[%emt 0:00:45]} 24. Bxa4 {[%emt 0:00:18]} Bf8 {[%emt 0:00:26]} 25. Bb3+ {[%emt 0:01:30]} Kh8 {[%emt 0:00:04]} 26. Be6 {[%emt 0:00:05]} Rc7 {[%emt 0:00:09]} 27. Bc4 {[%emt 0:00:16]} Bxc4 {[%emt 0:00:12]} 28. Rxc4 {[%emt 0:00:06]} Rb1+ {[%emt 0:00:03]} 29. Kd2 {[%emt 0:00:05]} Rxh1 {[%emt 0:00:00]} 30. Nb5 {[%emt 0:00:10]} Rc8 {[%emt 0:00:02]} 31. Na7 {[%emt 0:00:02]} Rd8+ {[%emt 0:00:07]} 32. Kc2 {[%emt 0:00:07]} Bxa3 {[%emt 0:00:15]} 33. c7 {[%emt 0:00:04]} Rc1+ {[%emt 0:00:04]} 34. Kb3 {[%emt 0:00:01]} Rd3+ {[%emt 0:00:01]} 35. Ka2 {[%emt 0:00:10]} Rxc4 {[%emt 0:00:02]} 0-1

[Event "European Online Club-ch-B 2021"]
[Site "Online"]
[Date "2021.03.27"]
[Round "9.14"]
[White "Hansen, Sune Berg"]
[Black "Agrest, Inna"]
[Result "1-0"]
[ECO "C54"]
[WhiteElo "2533"]
[BlackElo "2285"]
[Annotator "ChessBase"]
[PlyCount "57"]
[EventDate "2021.03.27"]
[EventType "team-tourn"]
[EventCountry "NET"]
[SourceTitle "playchess.com"]
[Source "ChessBase"]
[SourceQuality "1"]
[TimeControl "900+5"]

1. e4 {[%emt 0:00:00]} e5 {[%emt 0:00:03]} 2. Nf3 {[%emt 0:00:03]} Nc6 {[%emt 0:00:01]} 3. Bc4 {[%emt 0:00:01]} Nf6 {[%emt 0:00:02]} 4. d3 {[%emt 0:00:03]} Bc5 {[%emt 0:00:02]} 5. c3 {[%emt 0:00:02]} a6 {[%emt 0:00:01]} 6. a4 {[%emt 0:00:03]} Ba7 {[%emt 0:00:05]} 7. O-O {[%emt 0:00:02]} d6 {[%emt 0:00:05]} 8. Re1 {[%emt 0:00:06]} O-O {[%emt 0:00:03]} 9. h3 {[%emt 0:00:01]} Ne7 {[%emt 0:00:18]} 10. d4 {[%emt 0:00:06]} Ng6 {[%emt 0:00:09]} 11. Nbd2 {[%emt 0:00:12]} Qe7 {[%emt 0:00:39]} 12. Bb3 {[%emt 0:00:14]} Nh5 {[%emt 0:02:33]} 13. Nf1 {[%emt 0:00:52]} Nhf4 {[%emt 0:01:04]} 14. Ng3 {[%emt 0:01:06]} h6 {[%emt 0:01:54]} 15. Nf5 {[%emt 0:00:48]} Qf6 {[%emt 0:00:27]} 16. Bc2 {[%emt 0:00:04]} Re8 {[%emt 0:02:05]} 17. Be3 {[%emt 0:02:48]} exd4 {[%emt 0:04:36]} 18. cxd4 {[%emt 0:02:14]} d5 {[%emt 0:00:06]} 19. e5 {[%emt 0:00:15]} Qd8 {[%emt 0:00:15]} 20. Qd2 {[%emt 0:00:46]} Bxf5 {[%emt 0:00:39]} 21. Bxf5 {[%emt 0:00:04]} Ne6 {[%emt 0:00:03]} 22. Rac1 {[%emt 0:01:47]} c6 {[%emt 0:00:07]} 23. Rc3 {[%emt 0:01:15]} a5 {[%emt 0:00:19]} 24. Bxh6 {[%emt 0:00:30]} Nh4 {[%emt 0:00:59]} 25. Bxe6 {[%emt 0:00:30]} fxe6 {[%emt 0:00:16]} 26. Nxh4 {[%emt 0:00:15]} Qxh4 {[%emt 0:00:00]} 27. Rg3 {[%emt 0:00:02]} Qxd4 {[%emt 0:00:18]} 28. Rxg7+ {[%emt 0:00:36]} Kh8 {[%emt 0:00:03]} 29. Qc2 {[%emt 0:00:03]} 1-0

[Event "European Online Club-ch-B 2021"]
[Site "Online"]
[Date "2021.03.27"]
[Round "9.15"]
[White "Rasti, Arvin"]
[Black "Engel, Luis"]
[Result "0-1"]
[ECO "D38"]
[WhiteElo "2195"]
[BlackElo "2553"]
[Annotator "ChessBase"]
[PlyCount "44"]
[EventDate "2021.03.27"]
[EventType "team-tourn"]
[EventCountry "NET"]
[SourceTitle "playchess.com"]
[Source "ChessBase"]
[SourceQuality "1"]
[TimeControl "900+5"]

1. d4 {[%emt 0:00:00]} Nf6 {[%emt 0:00:02]} 2. c4 {[%emt 0:00:02]} e6 {[%emt 0:00:02]} 3. Nf3 {[%emt 0:00:06]} d5 {[%emt 0:00:02]} 4. Nc3 {[%emt 0:00:04]} Bb4 {[%emt 0:00:08]} 5. Qa4+ {[%emt 0:00:05]} Nc6 {[%emt 0:00:02]} 6. e3 {[%emt 0:00:03]} O-O {[%emt 0:00:04]} 7. Bd2 {[%emt 0:00:05]} dxc4 {[%emt 0:00:32]} 8. Bxc4 {[%emt 0:00:14]} Bd6 {[%emt 0:00:08]} 9. a3 {[%emt 0:00:10]} e5 {[%emt 0:00:38]} 10. dxe5 {[%emt 0:00:05]} Nxe5 {[%emt 0:00:00]} 11. Nxe5 {[%emt 0:00:03]} Bxe5 {[%emt 0:00:01]} 12. O-O-O {[%emt 0:00:07]} Qe7 {[%emt 0:00:27]} 13. Qc2 {[%emt 0:00:29]} Be6 {[%emt 0:02:59]} 14. Bxe6 {[%emt 0:01:03]} Qxe6 {[%emt 0:00:03]} 15. Kb1 {[%emt 0:00:20]} Rfe8 {[%emt 0:00:47]} 16. Ne4 {[%emt 0:01:24]} Nxe4 {[%emt 0:00:53]} 17. Qxe4 {[%emt 0:00:07]} Qb6 {[%emt 0:00:14]} 18. Qb4 {[%emt 0:00:05]} Qg6+ {[%emt 0:00:18]} 19. Ka1 {[%emt 0:00:19]} a5 {[%emt 0:00:19]} 20. Qc4 {[%emt 0:00:44]} b5 {[%emt 0:00:15]} 21. Qd5 {[%emt 0:00:19]} b4 {[%emt 0:00:51]} 22. a4 {[%emt 0:00:11]} Qc2 {[%emt 0:00:23]} 0-1

[Event "European Online Club-ch-B 2021"]
[Site "Online"]
[Date "2021.03.27"]
[Round "9.16"]
[White "Heinemann, Thies"]
[Black "Wengholm, Anders"]
[Result "1-0"]
[ECO "B09"]
[WhiteElo "2502"]
[BlackElo "2198"]
[Annotator "ChessBase"]
[PlyCount "57"]
[EventDate "2021.03.27"]
[EventType "team-tourn"]
[EventCountry "NET"]
[SourceTitle "playchess.com"]
[Source "ChessBase"]
[SourceQuality "1"]
[TimeControl "900+5"]

1. e4 {[%emt 0:00:00]} d6 {[%emt 0:00:02]} 2. d4 {[%emt 0:00:03]} Nf6 {[%emt 0:00:02]} 3. Nc3 {[%emt 0:00:02]} g6 {[%emt 0:00:01]} 4. f4 {[%emt 0:00:01]} Bg7 {[%emt 0:00:03]} 5. Nf3 {[%emt 0:00:02]} c5 {[%emt 0:00:03]} 6. dxc5 {[%emt 0:01:33]} Qa5 {[%emt 0:00:04]} 7. Qd4 {[%emt 0:00:53]} O-O {[%emt 0:00:19]} 8. Bd2 {[%emt 0:02:27]} Nc6 {[%emt 0:00:11]} 9. Qc4 {[%emt 0:00:50]} Be6 {[%emt 0:02:25]} 10. Qb5 {[%emt 0:00:06]} Qc7 {[%emt 0:00:58]} 11. cxd6 {[%emt 0:01:37]} exd6 {[%emt 0:00:04]} 12. Bd3 {[%emt 0:00:16]} a6 {[%emt 0:00:43]} 13. Qg5 {[%emt 0:00:04]} Qb6 {[%emt 0:01:10]} 14. Na4 {[%emt 0:01:09]} Qa7 {[%emt 0:00:07]} 15. f5 {[%emt 0:00:12]} h6 {[%emt 0:03:09]} 16. Qh4 {[%emt 0:00:43]} g5 {[%emt 0:00:12]} 17. Nxg5 {[%emt 0:00:41]} Bxf5 {[%emt 0:00:57]} 18. exf5 {[%emt 0:00:16]} Rfe8+ {[%emt 0:01:12]} 19. Kd1 {[%emt 0:00:17]} hxg5 {[%emt 0:00:02]} 20. Bxg5 {[%emt 0:00:05]} Ne5 {[%emt 0:01:59]} 21. Nc3 {[%emt 0:02:15]} Neg4 {[%emt 0:00:33]} 22. Kd2 {[%emt 0:00:14]} b5 {[%emt 0:00:27]} 23. Rae1 {[%emt 0:00:12]} b4 {[%emt 0:00:03]} 24. Nd1 {[%emt 0:01:06]} d5 {[%emt 0:01:48]} 25. h3 {[%emt 0:00:16]} Ne4+ {[%emt 0:00:21]} 26. Bxe4 {[%emt 0:00:10]} dxe4 {[%emt 0:00:02]} 27. hxg4 {[%emt 0:00:14]} Rac8 {[%emt 0:00:07]} 28. Kc1 {[%emt 0:01:12]} Qd4 {[%emt 0:00:10]} 29. Re2 {[%emt 0:00:10]} 1-0